bitfinex/quotes_BTCUSD_20240811
["timestamp","ask_amount","ask_price","bid_price","bid_amount"]
[1723411818676,2.40941926,58666.0,58665.0,0.009108]
[1723411818897,2.41941926,58666.0,58665.0,0.009108]
[1723411819157,2.43241926,58666.0,58665.0,0.009108]
[1723411820214,2.42536319,58666.0,58665.0,0.009108]
[1723411820421,0.01,58652.0,58635.0,0.3071]
[1723411820628,0.170544,58636.0,58635.0,0.1354]
[1723411821181,0.170544,58636.0,58635.0,0.3071]
[1723411821556,0.511639,58635.0,58634.0,0.009119]
[1723411821746,0.852732,58635.0,58634.0,0.009119]
[1723411821951,1.193825,58635.0,58634.0,0.009119]
[1723411822778,1.197825,58635.0,58634.0,0.009119]
[1723411823317,1.36163992,58635.0,58634.0,0.009119]
[1723411823949,1.35763992,58635.0,58634.0,0.009119]
[1723411824151,1.36163992,58635.0,58634.0,0.009119]
[1723411824364,1.36063992,58635.0,58634.0,0.009119]
[1723411824558,1.35763992,58635.0,58634.0,0.009119]
[1723411824964,1.35963992,58635.0,58634.0,0.009119]
[1723411825169,1.36363992,58635.0,58634.0,0.009119]
[1723411825585,1.35963992,58635.0,58634.0,0.009119]
[1723411825993,1.36663992,58635.0,58634.0,0.009119]
[1723411826167,1.36463992,58635.0,58634.0,0.009119]
[1723411826617,1.99658262,58635.0,58634.0,0.009119]
[1723411826824,2.00758262,58635.0,58634.0,0.009119]
[1723411827177,1.99958262,58635.0,58634.0,0.009119]
[1723411827582,2.00358262,58635.0,58634.0,0.009119]
[1723411828004,2.02458262,58635.0,58634.0,0.009119]
[1723411828244,2.12458262,58635.0,58634.0,0.009119]
[1723411828468,2.13758262,58635.0,58634.0,0.009119]
[1723411828621,1.97343292,58635.0,58634.0,0.009119]
[1723411828827,1.96043292,58635.0,58634.0,0.009119]
[1723411829032,1.95043292,58635.0,58634.0,0.009119]
[1723411829249,1.97443292,58635.0,58634.0,0.009119]
[1723411830232,1.9850461,58635.0,58634.0,0.009119]
[1723411830432,2.1351958,58635.0,58634.0,0.009119]
[1723411830635,2.1471958,58635.0,58634.0,0.009119]
[1723411830963,2.1591958,58635.0,58634.0,0.009119]
[1723411831326,2.1471958,58635.0,58634.0,0.009119]
[1723411831583,3.36854487,58635.0,58634.0,0.009119]
[1723411831787,3.35454487,58635.0,58634.0,0.009119]
[1723411832203,3.36754487,58635.0,58634.0,0.009119]
[1723411832398,3.36754487,58635.0,58630.0,0.009119]
[1723411832399,0.56631407,58631.0,58630.0,0.009119]
[1723411832593,2.28835715,58631.0,58630.0,0.009119]
[1723411832815,3.26055545,58631.0,58630.0,0.009119]
[1723411833012,3.27055545,58631.0,58630.0,0.004119]
[1723411833232,1.56218107,58627.0,58626.0,0.00011]
[1723411833441,1.45780092,58627.0,58626.0,0.30591]
[1723411833585,1.35780092,58627.0,58626.0,0.30591]
[1723411834994,1.37180092,58627.0,58626.0,0.30591]
[1723411836205,1.35780092,58627.0,58626.0,0.30591]
[1723411836655,1.37180092,58627.0,58626.0,0.30591]
[1723411836849,1.35780092,58627.0,58626.0,0.16891]
[1723411837252,1.36080092,58627.0,58626.0,0.16891]
[1723411837450,1.35780092,58627.0,58626.0,0.16891]
[1723411837860,1.36480092,58627.0,58626.0,0.16891]
[1723411838149,1.35780092,58627.0,58626.0,0.16891]
[1723411838577,1.51497278,58627.0,58626.0,0.00011]
[1723411838793,1.35780092,58627.0,58626.0,0.00011]
[1723411839441,1.36280092,58627.0,58626.0,0.00011]
[1723411839661,1.35780092,58627.0,58626.0,0.00011]
[1723411840080,1.36980092,58627.0,58626.0,0.00011]
[1723411840699,1.35697892,58627.0,58626.0,0.0010219]
[1723411841016,1.35697892,58627.0,58626.0,0.1573219]
[1723411841017,1.36797892,58627.0,58626.0,0.1573219]
[1723411841215,1.35697892,58627.0,58626.0,0.1573219]
[1723411842692,1.36497892,58627.0,58626.0,0.1573219]
[1723411842897,1.35697892,58627.0,58626.0,0.1573219]
[1723411843277,1.36197892,58627.0,58626.0,0.1573219]
[1723411844018,1.35697892,58627.0,58626.0,0.1573219]
[1723411844342,1.36197892,58627.0,58626.0,0.1573219]
[1723411844451,1.36197892,58627.0,58626.0,0.0010219]
[1723411845322,1.66537892,58627.0,58626.0,0.0010219]
[1723411845905,1.46197892,58627.0,58626.0,0.0010219]
[1723411846109,1.45697892,58627.0,58626.0,0.0010219]
[1723411846289,1.66037892,58627.0,58626.0,0.0010219]
[1723411846492,1.66537892,58627.0,58626.0,0.0010219]
[1723411846732,1.66037892,58627.0,58626.0,0.0010219]
[1723411847280,1.66837892,58627.0,58626.0,0.0010219]
[1723411847484,1.66037892,58627.0,58626.0,0.0010219]
[1723411847702,1.66837892,58627.0,58626.0,0.1616219]
[1723411848113,1.66037892,58627.0,58626.0,0.1616219]
[1723411849301,1.67337892,58627.0,58626.0,0.1616219]
[1723411849500,1.70023072,58627.0,58626.0,0.1616219]
[1723411849849,1.68723072,58627.0,58626.0,0.1616219]
[1723411849985,1.69623072,58627.0,58626.0,0.1616219]
[1723411850186,1.68723072,58627.0,58626.0,0.1616219]
[1723411850387,2.02836972,58627.0,58626.0,0.1616219]
[1723411850645,1.69623072,58627.0,58626.0,0.1616219]
[1723411850826,1.68723072,58627.0,58626.0,0.1616219]
[1723411851341,1.69623072,58627.0,58626.0,0.1616219]
[1723411851686,1.69609749,58627.0,58626.0,0.1616219]
[1723411852509,1.68709749,58627.0,58626.0,0.1616219]
[1723411853429,1.69809749,58627.0,58626.0,0.1616219]
[1723411853662,1.68709749,58627.0,58626.0,0.1616219]
[1723411853889,1.69709749,58627.0,58626.0,0.1616219]
[1723411855157,1.67037892,58627.0,58626.0,0.1616219]
[1723411855364,1.69720692,58627.0,58626.0,0.1616219]
[1723411855573,1.69720692,58627.0,58626.0,0.0010219]
[1723411855770,1.67037892,58627.0,58626.0,0.0010219]
[1723411855995,1.69727242,58627.0,58626.0,0.0010219]
[1723411856204,2.30727242,58627.0,58626.0,0.0010219]
[1723411856398,2.64841142,58627.0,58626.0,0.0010219]
[1723411856604,2.47596112,58627.0,58626.0,0.0010219]
[1723411856845,3.23922869,58627.0,58626.0,0.0010219]
[1723411857227,3.24922869,58627.0,58626.0,0.0010219]
[1723411857556,3.23922869,58627.0,58626.0,0.0010219]
[1723411858572,3.22922869,58627.0,58626.0,0.0010219]
[1723411858945,3.2398848,58627.0,58626.0,0.0010219]
[1723411859918,3.5910238,58627.0,58626.0,0.0010219]
[1723411860320,3.5810238,58627.0,58626.0,0.0010219]
[1723411861349,3.46044867,58627.0,58626.0,0.0010219]
[1723411861511,3.5829061,58627.0,58626.0,0.0010219]
[1723411862200,3.2557671,58627.0,58626.0,0.0010219]
[1723411862435,3.2417671,58627.0,58626.0,0.0010219]
[1723411862644,3.25563347,58627.0,58626.0,0.0010219]
[1723411862862,3.08148252,58627.0,58626.0,0.0010219]
[1723411863991,3.06748252,58627.0,58626.0,0.0010219]
[1723411864212,2.80408252,58627.0,58626.0,0.0010219]
[1723411864445,2.51889605,58627.0,58626.0,0.0010219]
[1723411864683,2.52972505,58627.0,58626.0,0.0010219]
[1723411864920,2.51972505,58627.0,58626.0,0.0010219]
[1723411865218,2.5337357,58627.0,58626.0,0.0010219]
[1723411865639,2.61972505,58627.0,58626.0,0.0010219]
[1723411865881,2.64072505,58627.0,58626.0,0.0010219]
[1723411866250,2.61334692,58627.0,58626.0,0.0010219]
[1723411866475,2.64072178,58627.0,58626.0,0.0010219]
[1723411866688,2.62972178,58627.0,58626.0,0.0010219]
[1723411867584,2.63872178,58627.0,58626.0,0.0010219]
[1723411867806,2.62872178,58627.0,58626.0,0.1586219]
[1723411868333,2.28758278,58627.0,58626.0,0.1586219]
[1723411868525,2.27858278,58627.0,58626.0,0.1586219]
[1723411868938,2.76952178,58627.0,58626.0,0.0010219]
[1723411869160,2.75952178,58627.0,58626.0,0.0010219]
[1723411869361,2.82669174,58627.0,58626.0,0.0010219]
[1723411869579,3.09712658,58627.0,58626.0,0.0010219]
[1723411869793,3.21502525,58627.0,58626.0,0.0010219]
[1723411869997,3.21512832,58627.0,58626.0,0.0010219]
[1723411870196,3.43697947,58627.0,58626.0,0.0010219]
[1723411870477,3.56658928,58627.0,58626.0,0.0010219]
[1723411870695,3.43997947,58627.0,58626.0,0.0010219]
[1723411871816,3.43697947,58627.0,58626.0,0.0010219]
[1723411872015,3.09584047,58627.0,58626.0,0.0010219]
[1723411872208,3.10484047,58627.0,58626.0,0.0010219]
[1723411872409,3.09604334,58627.0,58626.0,0.0010219]
[1723411872615,3.43718234,58627.0,58626.0,0.0010219]
[1723411872969,2.78009364,58627.0,58626.0,0.1601219]
[1723411873172,2.78009364,58627.0,58626.0,0.0010219]
[1723411873605,2.79009364,58627.0,58626.0,0.0010219]
[1723411874404,2.81309364,58627.0,58626.0,0.0010219]
[1723411875364,2.80309364,58627.0,58626.0,0.0010219]
[1723411875911,2.80290254,58627.0,58626.0,0.0010219]
[1723411876312,2.81590254,58627.0,58626.0,0.0010219]
[1723411876511,2.80289518,58627.0,58626.0,0.0010219]
[1723411876929,2.81589518,58627.0,58626.0,0.0010219]
[1723411877351,2.98004488,58627.0,58626.0,0.0010219]
[1723411877505,3.32823995,58627.0,58626.0,0.0010219]
[1723411878515,3.32523995,58627.0,58626.0,0.0010219]
[1723411878732,3.33823995,58627.0,58626.0,0.0010219]
[1723411878962,3.32523995,58627.0,58626.0,0.0010219]
[1723411879497,3.33823995,58627.0,58626.0,0.0010219]
[1723411879710,3.33817596,58627.0,58626.0,0.0010219]
[1723411880301,3.32817596,58627.0,58626.0,0.0010219]
[1723411880497,3.16402626,58627.0,58626.0,0.0010219]
[1723411881898,3.31927297,58627.0,58626.0,0.0010219]
[1723411882172,3.15668845,58627.0,58626.0,0.0010219]
[1723411882409,2.96782277,58627.0,58626.0,0.0010219]
[1723411882638,2.81554945,58627.0,58626.0,0.0010219]
[1723411882860,3.15668845,58627.0,58626.0,0.0010219]
[1723411883087,2.81554945,58627.0,58626.0,0.0010219]
[1723411883312,2.39585784,58627.0,58626.0,0.0010219]
[1723411883745,2.73699684,58627.0,58626.0,0.0010219]
[1723411884385,2.73699684,58627.0,58626.0,0.1645219]
[1723411884793,2.24556876,58627.0,58626.0,0.1645219]
[1723411885004,2.37643965,58627.0,58626.0,0.1645219]
[1723411885251,2.3256972,58627.0,58626.0,0.1645219]
[1723411885487,2.36644054,58627.0,58626.0,0.1645219]
[1723411886438,2.3156972,58627.0,58626.0,0.1645219]
[1723411886670,2.36310357,58627.0,58626.0,0.1645219]
[1723411886940,2.3156972,58627.0,58626.0,0.1645219]
[1723411887688,2.31569553,58627.0,58626.0,0.1645219]
[1723411888602,2.31570812,58627.0,58626.0,0.1645219]
[1723411890698,2.31570674,58627.0,58626.0,0.1645219]
[1723411894135,2.11230674,58627.0,58626.0,0.1645219]
[1723411894335,2.31570674,58627.0,58626.0,0.1645219]
[1723411894484,2.15189182,58627.0,58626.0,0.1645219]
[1723411895187,2.13889182,58627.0,58626.0,0.1645219]
[1723411895408,2.14989182,58627.0,58626.0,0.1645219]
[1723411896048,2.02829182,58627.0,58626.0,0.1645219]
[1723411896260,2.01729182,58627.0,58626.0,0.1645219]
[1723411897335,2.01739701,58627.0,58626.0,0.1645219]
[1723411897542,2.02139701,58627.0,58626.0,0.1645219]
[1723411897772,2.01739701,58627.0,58626.0,0.1645219]
[1723411897971,2.01738773,58627.0,58626.0,0.1645219]
[1723411898174,1.93758773,58627.0,58626.0,0.1645219]
[1723411898405,1.59644873,58627.0,58626.0,0.1645219]
[1723411898640,1.569262,58627.0,58626.0,0.16746583]
[1723411898812,1.651062,58627.0,58626.0,0.16746583]
[1723411899049,1.228123,58627.0,58626.0,0.29256583]
[1723411899260,1.651062,58627.0,58626.0,0.29256583]
[1723411899440,1.309923,58627.0,58626.0,0.29256583]
[1723411899639,1.651062,58627.0,58626.0,0.29256583]
[1723411899882,1.309923,58627.0,58626.0,0.29256583]
[1723411900073,1.651062,58627.0,58626.0,0.29256583]
[1723411900415,1.649062,58627.0,58626.0,0.29256583]
[1723411900621,1.307923,58627.0,58626.0,0.29256583]
[1723411901009,1.126123,58627.0,58626.0,0.29456583]
[1723411901288,1.126123,58627.0,58626.0,0.29256583]
[1723411902188,1.307923,58627.0,58626.0,0.29456583]
[1723411904148,0.000829,58627.0,58626.0,0.29456583]
[1723411904349,0.000829,58627.0,58626.0,0.97009775]
[1723411904350,0.510829,58627.0,58626.0,0.97009775]
[1723411904660,0.510829,58627.0,58626.0,1.11175657]
[1723411904872,0.000829,58631.0,58630.0,0.27594393]
[1723411905118,0.640829,58631.0,58630.0,0.44650493]
[1723411905288,0.580829,58631.0,58630.0,0.58815919]
[1723411905881,0.000829,58631.0,58630.0,1.44421811]
[1723411906075,0.000829,58631.0,58630.0,1.86714011]
[1723411906859,0.000829,58631.0,58630.0,1.88714011]
[1723411907059,0.001829,58631.0,58630.0,1.87314011]
[1723411907262,0.001829,58631.0,58630.0,1.86419618]
[1723411907263,0.000829,58631.0,58630.0,1.86419618]
[1723411907473,0.000829,58631.0,58630.0,1.86714011]
[1723411907715,0.001829,58631.0,58630.0,1.87314011]
[1723411907923,0.001829,58631.0,58630.0,1.78534011]
[1723411908063,0.001829,58631.0,58630.0,1.79434011]
[1723411908260,0.002829,58631.0,58630.0,1.79434011]
[1723411908689,0.002829,58631.0,58630.0,1.79432212]
[1723411909167,0.002829,58631.0,58630.0,1.65268585]
[1723411909367,0.002829,58631.0,58630.0,1.79432192]
[1723411912102,0.002829,58631.0,58630.0,1.79432477]
[1723411914046,0.002829,58631.0,58630.0,1.79632477]
[1723411915929,0.173387,58631.0,58630.0,0.42658285]
[1723411916132,0.173387,58631.0,58630.0,0.28494393]
[1723411916298,0.002829,58631.0,58630.0,0.28494393]
[1723411916757,0.514503,58631.0,58630.0,0.009]
[1723411916976,0.855619,58631.0,58630.0,0.009]
[1723411917315,0.170566,58628.0,58627.0,0.00385583]
[1723411917741,0.511699,58628.0,58627.0,0.00385583]
[1723411917951,1.84064432,58628.0,58627.0,0.0009119]
[1723411918163,1.97305367,58628.0,58627.0,0.0009119]
[1723411918319,2.89418667,58628.0,58627.0,0.0009119]
[1723411918519,2.88418667,58628.0,58627.0,0.0009119]
[1723411918727,2.79872227,58628.0,58627.0,0.0009119]
[1723411918939,2.81904711,58628.0,58627.0,0.0009119]
[1723411919146,2.79148422,58628.0,58627.0,0.0009119]
[1723411919347,2.81896639,58628.0,58627.0,0.0009119]
[1723411919596,2.83296639,58628.0,58627.0,0.0009119]
[1723411921115,2.83299072,58628.0,58627.0,0.0009119]
[1723411921835,2.83299175,58628.0,58627.0,0.0009119]
[1723411924018,2.38701229,58628.0,58627.0,0.0009119]
[1723411924217,1.67950476,58628.0,58627.0,0.0009119]
[1723411924602,1.66550476,58628.0,58627.0,0.0009119]
[1723411924802,1.67950476,58628.0,58627.0,0.0009119]
[1723411925261,2.00663776,58628.0,58627.0,0.0009119]
[1723411925464,2.07107394,58628.0,58627.0,0.0009119]
[1723411926071,2.08507394,58628.0,58627.0,0.0009119]
[1723411926391,2.82107394,58628.0,58627.0,0.0009119]
[1723411927677,2.83507394,58628.0,58627.0,0.0009119]
[1723411927878,2.80707394,58628.0,58627.0,0.0009119]
[1723411928253,2.82107394,58628.0,58627.0,0.0009119]
[1723411928473,2.80707394,58628.0,58627.0,0.0009119]
[1723411928675,2.77963776,58628.0,58627.0,0.0009119]
[1723411928876,2.82081293,58628.0,58627.0,0.0009119]
[1723411929277,2.82081298,58628.0,58627.0,0.0009119]
[1723411929487,2.83481298,58628.0,58627.0,0.0009119]
[1723411930737,2.80681298,58628.0,58627.0,0.0009119]
[1723411931498,2.82081298,58628.0,58627.0,0.0009119]
[1723411932103,2.80681298,58628.0,58627.0,0.0009119]
[1723411932296,2.77963776,58628.0,58627.0,0.0009119]
[1723411932501,2.82084133,58628.0,58627.0,0.0009119]
[1723411932996,2.79784133,58628.0,58627.0,0.0009119]
[1723411933199,2.77063776,58628.0,58627.0,0.0009119]
[1723411933827,2.75663776,58628.0,58627.0,0.0009119]
[1723411934341,2.77063776,58628.0,58627.0,0.0009119]
[1723411934945,2.75663776,58628.0,58627.0,0.0009119]
[1723411935162,2.85663776,58628.0,58627.0,0.0009119]
[1723411935364,2.87063776,58628.0,58627.0,0.0009119]
[1723411935713,3.04878746,58628.0,58627.0,0.0009119]
[1723411935911,2.88463776,58628.0,58627.0,0.0009119]
[1723411936112,2.91191965,58628.0,58627.0,0.0009119]
[1723411936658,2.93574865,58628.0,58627.0,0.0009119]
[1723411936856,2.91274865,58628.0,58627.0,0.0009119]
[1723411937072,2.88474865,58628.0,58627.0,0.0009119]
[1723411937424,2.89874865,58628.0,58627.0,0.0009119]
[1723411938070,2.91274865,58628.0,58627.0,0.0009119]
[1723411938266,2.89874865,58628.0,58627.0,0.0009119]
[1723411938470,2.91274865,58628.0,58627.0,0.0009119]
[1723411938869,2.88474865,58628.0,58627.0,0.0009119]
[1723411939084,2.89774865,58628.0,58627.0,0.0009119]
[1723411940131,2.89784536,58628.0,58627.0,0.0009119]
[1723411940558,2.88484536,58628.0,58627.0,0.0009119]
[1723411940712,2.89684536,58628.0,58627.0,0.0009119]
[1723411941341,2.91084536,58628.0,58627.0,0.0009119]
[1723411942030,2.96664536,58628.0,58627.0,0.0009119]
[1723411942434,2.98064536,58628.0,58627.0,0.0009119]
[1723411943719,2.96664536,58628.0,58627.0,0.0009119]
[1723411944085,2.98064536,58628.0,58627.0,0.0009119]
[1723411944492,2.99464536,58628.0,58627.0,0.0009119]
[1723411944868,1.99649744,58628.0,58627.0,0.1671119]
[1723411945082,1.713461,58628.0,58627.0,0.1671119]
[1723411945321,1.685461,58628.0,58627.0,0.1671119]
[1723411945730,1.699461,58628.0,58627.0,0.1671119]
[1723411945939,1.617661,58628.0,58627.0,0.1671119]
[1723411946981,1.603661,58628.0,58627.0,0.1671119]
[1723411947196,1.703661,58628.0,58627.0,0.1671119]
[1723411947390,1.73109741,58628.0,58627.0,0.1671119]
[1723411947808,1.73409741,58628.0,58627.0,0.1671119]
[1723411948003,1.73109741,58628.0,58627.0,0.1671119]
[1723411948819,1.73105834,58628.0,58627.0,0.1671119]
[1723411949018,1.73105834,58628.0,58627.0,0.1701119]
[1723411949198,1.703661,58628.0,58627.0,0.1701119]
[1723411950639,1.703661,58628.0,58627.0,0.1671119]
[1723411950845,1.262528,58628.0,58627.0,0.1671119]
[1723411951040,1.262528,58628.0,58627.0,0.1681119]
[1723411951480,1.262528,58628.0,58627.0,0.1671119]
[1723411951885,1.603661,58628.0,58627.0,0.1671119]
[1723411952202,1.603661,58628.0,58627.0,0.17005583]
[1723411952401,1.603661,58628.0,58627.0,0.1681119]
[1723411952526,1.603661,58628.0,58627.0,0.1671119]
[1723411952722,1.63102522,58628.0,58627.0,0.1671119]
[1723411952963,1.63102522,58628.0,58627.0,0.17005583]
[1723411953430,1.63102522,58628.0,58627.0,0.1671119]
[1723411953634,1.63109357,58628.0,58627.0,0.1671119]
[1723411954010,1.63109357,58628.0,58627.0,0.1681119]
[1723411954215,1.603661,58628.0,58627.0,0.1671119]
[1723411954415,1.63108001,58628.0,58627.0,0.1671119]
[1723411954615,1.63308001,58628.0,58627.0,0.1671119]
[1723411955177,1.605661,58628.0,58627.0,0.1671119]
[1723411961152,1.63318951,58628.0,58627.0,0.1671119]
[1723411961559,1.63319001,58628.0,58627.0,0.1671119]
[1723411962664,1.605661,58628.0,58627.0,0.1671119]
[1723411963094,1.603661,58628.0,58627.0,0.1671119]
[1723411963525,1.63223451,58628.0,58627.0,0.1671119]
[1723411964465,1.63123451,58628.0,58627.0,0.1671119]
[1723411964601,1.63123451,58628.0,58627.0,0.1701119]
[1723411964801,1.603661,58628.0,58627.0,0.1701119]
[1723411965002,1.63122579,58628.0,58627.0,0.1701119]
[1723411966003,1.603661,58628.0,58627.0,0.1701119]
[1723411966207,1.6312288,58628.0,58627.0,0.1671119]
[1723411966554,1.6322288,58628.0,58627.0,0.1671119]
[1723411967205,1.6322288,58628.0,58627.0,0.1701119]
[1723411967656,1.63222976,58628.0,58627.0,0.1701119]
[1723411968120,1.686461,58628.0,58627.0,0.1701119]
[1723411968548,1.71404311,58628.0,58627.0,0.1701119]
[1723411968963,1.71404436,58628.0,58627.0,0.1701119]
[1723411969920,1.71304436,58628.0,58627.0,0.1671119]
[1723411970735,1.71304436,58628.0,58627.0,0.1701119]
[1723411972928,1.685461,58628.0,58627.0,0.1701119]
[1723411973148,1.71306806,58628.0,58627.0,0.1701119]
[1723411973635,1.71306843,58628.0,58627.0,0.1701119]
[1723411974172,1.71306843,58628.0,58627.0,0.0039119]
[1723411975546,2.05420143,58628.0,58627.0,0.0039119]
[1723411975765,1.71306843,58628.0,58627.0,0.0039119]
[1723411975987,2.05420143,58628.0,58627.0,0.0039119]
[1723411976170,1.71306843,58628.0,58627.0,0.0039119]
[1723411976364,1.63126843,58628.0,58627.0,0.0039119]
[1723411976570,1.71306843,58628.0,58627.0,0.0039119]
[1723411977691,1.71306843,58628.0,58627.0,0.0009119]
[1723411978270,2.18240143,58628.0,58627.0,0.0009119]
[1723411978528,1.71306843,58628.0,58627.0,0.0009119]
[1723411979500,1.71406843,58628.0,58627.0,0.0009119]
[1723411979705,1.87788335,58628.0,58627.0,0.0009119]
[1723411980108,1.87888335,58628.0,58627.0,0.0009119]
[1723411980317,1.87688335,58628.0,58627.0,0.0009119]
[1723411980756,1.84927592,58628.0,58627.0,0.0009119]
[1723411981121,1.71286715,58628.0,58627.0,0.0009119]
[1723411982075,0.77823515,58628.0,58627.0,0.44124026]
[1723411982277,0.750829,58628.0,58627.0,0.60886533]
[1723411982478,0.750829,58628.0,58627.0,1.12676318]
[1723411982678,0.750829,58628.0,58627.0,1.54636839]
[1723411982841,0.000829,58631.0,58630.0,0.86574893]
[1723411983064,0.0818,58649.0,58646.0,0.00294393]
[1723411983271,0.0818,58649.0,58646.0,0.48955234]
[1723411983466,0.5420804,58662.0,58657.0,0.1247]
[1723411983668,0.02737503,58661.0,58660.0,0.00294393]
[1723411983917,0.340895,58669.0,58662.0,0.00294393]
[1723411984160,0.170461,58665.0,58662.0,0.00294393]
[1723411984392,0.05100166,58673.0,58663.0,0.1247]
[1723411984591,0.05100166,58673.0,58667.0,0.00294393]
[1723411984592,0.170451,58668.0,58667.0,0.00294393]
[1723411984798,0.51132,58672.0,58671.0,0.17394393]
[1723411985002,1.04132,58672.0,58671.0,0.17394393]
[1723411985175,0.53,58672.0,58671.0,0.17394393]
[1723411985329,0.53,58672.0,58671.0,0.2957]
[1723411985527,0.53,58672.0,58671.0,0.29864393]
[1723411985729,0.08184646,58682.0,58680.0,0.00294393]
[1723411985930,0.511207,58685.0,58684.0,0.17394393]
[1723411986335,0.178678,58687.0,58684.0,0.17394393]
[1723411986545,0.00828,58687.0,58684.0,0.17440769]
[1723411986744,0.00828,58687.0,58683.0,0.1374]
[1723411986745,0.00828,58687.0,58685.0,0.85266936]
[1723411986947,0.00828,58687.0,58685.0,1.33499108]
[1723411987177,0.00828,58687.0,58685.0,1.50128437]
[1723411987331,0.0083,58690.0,58689.0,0.18333293]
[1723411987537,0.08184646,58707.0,58706.0,0.00294393]
[1723411987784,0.511012,58707.0,58706.0,0.16424393]
[1723411988247,0.170338,58707.0,58706.0,0.30164393]
[1723411988900,0.000829,58709.0,58708.0,0.00294393]
[1723411989098,0.000829,58709.0,58708.0,0.50179891]
[1723411989290,0.000829,58709.0,58708.0,0.32805885]
[1723411990352,0.001829,58709.0,58708.0,0.50339285]
[1723411990556,0.001829,58709.0,58708.0,0.53546293]
[1723411990791,0.000829,58709.0,58708.0,0.53046293]
[1723411990987,0.001829,58709.0,58708.0,0.53546293]
[1723411991379,0.001829,58709.0,58708.0,0.50339285]
[1723411991579,0.001829,58709.0,58708.0,0.53546293]
[1723411992183,0.001829,58709.0,58708.0,0.87613193]
[1723411992361,0.000829,58709.0,58708.0,0.83906185]
[1723411992565,0.000829,58709.0,58708.0,1.68599985]
[1723411992566,0.001829,58709.0,58708.0,1.68599985]
[1723411992762,0.001829,58709.0,58708.0,1.98151569]
[1723411993395,0.000829,58709.0,58708.0,1.97651569]
[1723411993804,0.001829,58709.0,58708.0,2.02794095]
[1723411993987,0.001829,58709.0,58708.0,2.02294095]
[1723411994187,0.002829,58709.0,58708.0,2.02794095]
[1723411994371,0.002829,58709.0,58708.0,1.25517769]
[1723411994585,0.002829,58709.0,58708.0,0.64416758]
[1723411994785,0.002829,58709.0,58708.0,0.67306293]
[1723411995002,0.002829,58709.0,58708.0,0.50272893]
[1723411995199,0.002829,58709.0,58708.0,0.67306293]
[1723411995404,0.000829,58709.0,58708.0,0.66806293]
[1723411995600,0.000829,58709.0,58708.0,1.00873193]
[1723411995808,0.000829,58709.0,58708.0,1.00742281]
[1723411996017,0.001829,58709.0,58708.0,0.48847588]
[1723411996214,0.001829,58709.0,58708.0,0.64099285]
[1723411996425,0.001829,58709.0,58708.0,0.62804892]
[1723411996624,0.000829,58709.0,58708.0,0.62599285]
[1723411997053,0.001829,58709.0,58708.0,0.63099285]
[1723411997247,0.001829,58709.0,58708.0,0.97666185]
[1723411997671,0.001829,58709.0,58708.0,1.11811896]
[1723411998275,0.001829,58709.0,58708.0,1.10811896]
[1723411998694,0.001829,58709.0,58708.0,0.97666185]
[1723411999033,0.002829,58709.0,58708.0,0.97166185]
[1723411999242,0.002829,58709.0,58708.0,0.63099285]
[1723411999390,0.000829,58709.0,58708.0,0.96666185]
[1723411999599,0.000829,58709.0,58708.0,1.11812412]
[1723411999804,0.001829,58709.0,58708.0,1.12312412]
[1723411999964,0.001829,58709.0,58708.0,0.97666185]
[1723412000168,0.001829,58709.0,58708.0,1.10812392]
[1723412000361,0.002829,58709.0,58708.0,1.11312392]
[1723412000562,0.000829,58709.0,58708.0,0.76745492]
[1723412000825,0.000829,58709.0,58708.0,1.10812392]
[1723412001991,0.000829,58709.0,58708.0,0.96666185]
[1723412002220,0.000829,58709.0,58708.0,1.4487953]
[1723412002421,0.001829,58709.0,58708.0,1.4537953]
[1723412002854,0.001829,58709.0,58708.0,1.4487953]
[1723412003013,0.002829,58709.0,58708.0,1.1131263]
[1723412003375,0.001829,58709.0,58708.0,1.1081263]
[1723412003750,0.002829,58709.0,58708.0,1.1131263]
[1723412004367,0.002829,58709.0,58708.0,1.11018237]
[1723412004567,0.002829,58709.0,58708.0,1.1131263]
[1723412004823,0.002829,58709.0,58708.0,1.4637953]
[1723412005965,0.000829,58709.0,58708.0,1.4587953]
[1723412006157,0.000829,58709.0,58708.0,1.79945074]
[1723412006278,0.001829,58709.0,58708.0,1.46378174]
[1723412006480,0.000829,58709.0,58708.0,1.45877555]
[1723412006679,0.000829,58709.0,58708.0,1.46377555]
[1723412006881,0.001829,58709.0,58708.0,1.46377555]
[1723412007129,0.001829,58709.0,58708.0,1.31733085]
[1723412007365,0.002829,58709.0,58708.0,1.67595313]
[1723412007762,0.002829,58709.0,58708.0,1.67595315]
[1723412009498,0.002829,58709.0,58708.0,1.67595518]
[1723412011504,0.002829,58709.0,58708.0,1.67301125]
[1723412011711,0.002829,58709.0,58708.0,1.19768618]
[1723412011917,0.002829,58709.0,58708.0,1.19770395]
[1723412012328,0.000829,58709.0,58708.0,0.51788603]
[1723412012537,0.000829,58709.0,58708.0,0.35367588]
[1723412012750,0.511823,58709.0,58708.0,0.35367588]
[1723412012973,1.325649,58709.0,58708.0,0.35367588]
[1723412013180,1.325649,58709.0,58708.0,0.36767588]
[1723412013181,1.429649,58709.0,58708.0,0.36767588]
[1723412013326,1.428649,58709.0,58708.0,0.35367588]
[1723412013531,1.94312692,58709.0,58708.0,0.35367588]
[1723412013781,2.66312692,58709.0,58708.0,0.35567588]
[1723412014136,2.04312692,58709.0,58708.0,0.14147035]
[1723412014552,2.38378992,58709.0,58708.0,0.14147035]
[1723412014763,2.43470043,58709.0,58708.0,0.14147035]
[1723412014962,2.09403743,58709.0,58708.0,0.14147035]
[1723412015190,2.07103743,58709.0,58708.0,0.14147035]
[1723412015365,2.08003743,58709.0,58708.0,0.35475997]
[1723412015539,0.170383,58691.0,58690.0,0.0009097]
[1723412015727,0.170383,58691.0,58690.0,0.3547203]
[1723412016784,0.511139,58693.0,58690.0,0.3547203]
[1723412017091,0.170381,58692.0,58691.0,0.3538106]
[1723412017505,0.170383,58691.0,58690.0,0.0089097]
[1723412017634,0.170383,58691.0,58690.0,0.36271593]
[1723412017635,0.51115,58691.0,58690.0,0.36271593]
[1723412018031,0.51115,58691.0,58690.0,0.0089097]
[1723412018275,0.2041,58700.0,58690.0,0.66433994]
[1723412018473,0.2041,58700.0,58691.0,0.35381532]
[1723412018474,0.170383,58692.0,58691.0,0.35381532]
[1723412019906,0.171383,58692.0,58691.0,0.36181532]
[1723412020331,0.851905,58692.0,58691.0,0.35381532]
[1723412021335,0.511144,58692.0,58691.0,0.35381532]
[1723412021892,0.170383,58692.0,58691.0,0.49161532]
[1723412022074,0.001,58692.0,58691.0,0.49960617]
[1723412022454,0.001,58692.0,58691.0,0.5025501]
[1723412022666,0.002,58692.0,58691.0,0.5105501]
[1723412022942,0.001,58692.0,58691.0,0.4945501]
[1723412023298,0.001,58692.0,58691.0,0.49160617]